fUST/lending_fUST_20240807
["ID","MTS","AMOUNT","RATE_DAILY","PERIOD"]
[334374819,1723000251034,-459.340832,0.00032876,7]
[334374821,1723000251044,-459.340832,0.00032876,7]
[334374824,1723000251055,-48.2827293,0.00032876,7]
[334374932,1723000252093,-3000.0,0.00014654,2]
[334374934,1723000252103,-500.0,0.00014996,2]
[334374935,1723000252112,-500.0,0.00014996,2]
[334374938,1723000252123,-500.0,0.00014996,2]
[334374940,1723000252134,-176.79987214,0.00014996,2]
[334374942,1723000252145,-500.0,0.00014996,2]
[334374944,1723000252156,-500.0,0.00014996,2]
[334374946,1723000252166,-500.0,0.00014996,2]
[334374948,1723000252176,-500.0,0.00014996,2]
[334374950,1723000252186,-500.0,0.00014996,2]
[334374952,1723000252196,-500.0,0.00014996,2]
[334374954,1723000252206,-423.23846212,0.00014996,2]
[334374956,1723000252216,-500.0,0.00014996,2]
[334374958,1723000252225,-500.0,0.00014996,2]
[334374960,1723000252236,-500.0,0.00014996,2]
[334374962,1723000252247,-294.10498296,0.00014996,2]
[334374964,1723000252257,-500.0,0.00014996,2]
[334374966,1723000252266,-312.16423708,0.00014996,2]
[334374969,1723000252282,-187.83576292,0.00014996,2]
[334374971,1723000252292,-186.92009912,0.00014996,2]
[334374973,1723000252301,-463.40584692,0.00014996,2]
[334374975,1723000252311,-500.0,0.00014996,2]
[334374977,1723000252321,-500.0,0.00014996,2]
[334374979,1723000252332,-500.0,0.00014996,2]
[334374981,1723000252343,-422.13791931,0.00014996,2]
[334375015,1723000252920,356.57697925,0.0001212,2]
[334375051,1723000253260,-77.86208069,0.00014996,2]
[334375053,1723000253270,-500.0,0.00014996,2]
[334375055,1723000253282,-500.0,0.00014996,2]
[334375057,1723000253292,-202.13791931,0.00014996,2]
[334375650,1723000260904,273.37336231,9.9e-05,2]
[334375669,1723000264156,1382.92970052,0.0001212,2]
[334375670,1723000267117,210.84346195,0.0001212,2]
[334375671,1723000268805,273.37336231,9.9e-05,2]
[334375673,1723000272234,568.74678004,0.0001212,2]
[334375674,1723000275604,2125.17422013,0.0001212,2]
[334375675,1723000276147,226.64024844,0.0001212,2]
[334375676,1723000276584,194.63550402,0.00013699,2]
[334375677,1723000277167,1794.59755427,0.0001212,2]
[334375678,1723000277386,155.38638858,0.0001212,2]
[334375679,1723000277565,160.21294571,0.0001212,2]
[334375680,1723000277974,157.85964427,0.0001212,2]
[334375681,1723000278737,35022.02035591,0.0001212,2]
[334375682,1723000279275,543.12477019,0.0001212,2]
[334375683,1723000279574,178.88149297,0.0001212,2]
[334375684,1723000279735,959.45560378,0.0001212,2]
[334375685,1723000279786,810.21732199,0.0001212,2]
[334375686,1723000279951,470.98761369,0.0001212,2]
[334375687,1723000280184,156.74439841,0.0001212,2]
[334375688,1723000280954,154.66746495,0.0001212,2]
[334375689,1723000281564,849.67582147,0.0001212,2]
[334375690,1723000282991,1041.14640773,0.0001212,2]
[334375691,1723000283325,727.75567093,0.0001212,2]
[334375692,1723000284885,273.37336231,9.9e-05,2]
[334375693,1723000284992,320.29411064,0.0001212,2]
[334375694,1723000285580,255.78279885,0.0001212,2]
[334375695,1723000285746,9112.14256733,0.0001212,2]
[334375696,1723000286927,269.76993169,0.00013,2]
[334375697,1723000287490,209.88281018,0.0001212,2]
[334375698,1723000288308,7731.07010141,0.00013,2]
[334375699,1723000289750,414.04675619,0.0001212,2]
[334375700,1723000289914,404.50315004,0.0001212,2]
[334375701,1723000290335,154.66746495,0.0001212,2]
[334375702,1723000290541,42354.45522892,0.0001212,2]
[334375703,1723000291261,1610.68802731,0.0001212,2]
[334375704,1723000291842,845.54174408,0.0001212,2]
[334375705,1723000294922,240.87977821,0.0001212,2]
[334375706,1723000297472,309.6623538,0.0001212,2]
[334375707,1723000298086,1163.20555821,0.0001212,2]
[334375708,1723000299047,9645.52868758,0.0001212,2]
[334375709,1723000300398,20765.79471201,0.0001212,2]
[334375710,1723000300447,245.0,0.0001212,2]
[334375711,1723000301812,2139.82745581,0.0001212,2]
[334375712,1723000302302,356.57697925,0.0001212,2]
[334375713,1723000303953,9645.52868758,0.0001212,2]
[334375714,1723000304743,414.04675619,0.0001212,2]
[334375715,1723000304961,494.39725975,0.0001212,2]
[334375716,1723000361883,727.75567093,9.999e-05,2]
[334375717,1723000367297,810.21732199,9.999e-05,2]
[334375718,1723000367472,494.39725975,9.999e-05,2]
[334375719,1723000374729,406.39228265,9.999e-05,2]
[334375720,1723000377475,157.85964427,9.999e-05,2]
[334375721,1723000381102,849.67582147,9.999e-05,2]
[334375722,1723000381137,160.09722391,9.999e-05,2]
[334375723,1723000390428,250.0,0.00013731,2]
[334375724,1723000390647,250.0,0.00013768,2]
[334375725,1723000390895,250.0,0.00013806,2]
[334375726,1723000391069,250.0,0.00013843,2]
[334375727,1723000391318,250.0,0.00013881,2]
[334375728,1723000391469,240.63869447,9.999e-05,2]
[334375729,1723000391510,250.0,0.00013919,2]
[334375730,1723000391717,250.0,0.00013956,2]
[334375731,1723000391946,250.0,0.00013994,2]
[334375732,1723000395246,154.91450375,9.999e-05,2]
[334375733,1723000397850,155.46087446,9.999e-05,2]
[334375734,1723000400448,470.98761369,9.999e-05,2]
[334375735,1723000408339,361.80992909,0.0001212,2]
[334375736,1723000408473,470.98761369,9.999e-05,2]
[334375737,1723000412728,258.2522738,0.00013441,2]
[334375738,1723000413040,193.31435885,0.0001212,2]
[334375739,1723000413760,810.21732199,0.0001212,2]
[334375740,1723000420436,489.83527713,0.0001212,2]
[334375741,1723000428562,849.67582147,0.0001212,2]
[334375742,1723000450381,2379.7744807,0.00013334,2]
[334375743,1723000464653,627.93624538,9.999e-05,2]
[334375744,1723000468774,810.21732199,0.0001212,2]
[334375745,1723000476191,242.45617359,0.00013334,2]
[334375750,1723000572190,302.9332497,0.00013699,2]
[334375754,1723000737172,3000.0,0.00013699,2]
[334375755,1723000751651,591.5252023,0.00013334,2]
[334375763,1723000875506,250.0,0.00013479,2]
[334375764,1723000875716,250.0,0.00013516,2]
[334375765,1723000875934,250.0,0.00013553,2]
[334375766,1723000876143,250.0,0.0001359,2]
[334375767,1723000876366,250.0,0.00013627,2]
[334375768,1723000876615,250.0,0.00013664,2]
[334375769,1723000876828,250.0,0.00013701,2]
[334375770,1723000877082,250.0,0.00013738,2]
[334375771,1723000877270,250.0,0.00013775,2]
[334375772,1723000877477,250.0,0.00013812,2]
[334375773,1723000877885,250.0,0.00013849,2]
[334375774,1723000878136,250.0,0.00013886,2]
[334375775,1723000878508,250.0,0.00013923,2]
[334375776,1723000878608,250.0,0.0001396,2]
[334375777,1723000878852,250.0,0.00013997,2]
[334375783,1723000899019,188.7375587,0.00013699,2]
[334375787,1723001009766,24900.0,0.00013356,2]
[334375794,1723001191412,260.22547404,9.999e-05,2]
[334375797,1723001226102,849.67582147,9.999e-05,2]
[334375800,1723001264594,849.67582147,0.0001212,2]
[334375801,1723001276413,3000.0,0.00013699,2]
[334375802,1723001285570,273.37336231,9.9e-05,2]
[334375804,1723001291315,1317.74285569,0.00013,2]
[334375805,1723001293629,273.37336231,9.9e-05,2]
[334375806,1723001294696,161.06,0.00010959,2]
[334375807,1723001301888,273.37336231,9.9e-05,2]
[334375808,1723001305385,805.33,0.00010959,2]
[334375810,1723001350765,156.05197447,0.00013283,2]
[334375812,1723001355664,744.59992376,0.00010959,2]
[334375813,1723001364153,8557.28960163,0.00013934,2]
[334375817,1723001367170,-250.0,0.00014034,2]
[334375818,1723001367193,-250.0,0.00014071,2]
[334375819,1723001367216,-250.0,0.00014108,2]
[334375820,1723001367242,-250.0,0.00014145,2]
[334375821,1723001367265,-250.0,0.00014182,2]
[334375822,1723001367288,-161.805747,0.00014247,2]
[334375823,1723001367309,-163.48284,0.00014247,2]
[334375824,1723001367333,-253.20793871,0.00014444,2]
[334375825,1723001367357,-206.89437613,0.00014583,2]
[334375826,1723001367379,-300.0,0.00014681,2]
[334375827,1723001367402,-300.0,0.00014681,2]
[334375828,1723001367425,-162.60064966,0.00014682,2]
[334375829,1723001367450,-500.0,0.00014682,2]
[334375830,1723001367474,-500.0,0.00014682,2]
[334375831,1723001367497,-500.0,0.00014682,2]
[334375832,1723001367518,-135.4832705,0.00014682,2]
[334375833,1723001370133,-266.54724501,0.00014682,2]
[334375834,1723001387124,165.59010032,9.999e-05,2]
[334375838,1723001404930,273.37336231,9.9e-05,2]
[334375839,1723001407055,189.82369411,9.999e-05,2]
[334375840,1723001413010,273.37336231,9.9e-05,2]
[334375841,1723001424044,1096.39591705,0.00014,2]
[334375842,1723001429667,675.14131177,9.999e-05,2]
[334375897,1723001432960,-426.98215575,0.00014582,2]
[334375898,1723001432973,-436.33522896,0.00014582,2]
[334375954,1723001436473,1500.0,0.0001212,2]
[334375968,1723001439917,-906.86057886,0.00014582,2]
[334375969,1723001439929,-500.0,0.00014681,2]
[334375970,1723001439939,-500.0,0.00014681,2]
[334375971,1723001439950,-500.0,0.00014681,2]
[334375972,1723001439960,-500.0,0.00014681,2]
[334375973,1723001439969,-500.0,0.00014681,2]
[334375974,1723001439978,-500.0,0.00014681,2]
[334375975,1723001439989,-334.19475005,0.00014681,2]
[334375976,1723001440186,-500.0,0.00014681,2]
[334375977,1723001440196,-500.0,0.00014681,2]
[334375978,1723001440207,-500.0,0.00014681,2]
[334375979,1723001440216,-500.0,0.00014681,2]
[334375980,1723001440225,-500.0,0.00014681,2]
[334375981,1723001440234,-500.0,0.00014681,2]
[334375982,1723001440244,-500.0,0.00014681,2]
[334375983,1723001440255,-500.0,0.00014681,2]
[334375984,1723001440264,-500.0,0.00014681,2]
[334375985,1723001440274,-500.0,0.00014681,2]
[334375986,1723001440285,-500.0,0.00014681,2]
[334375987,1723001440296,-500.0,0.00014681,2]
[334375988,1723001440306,-500.0,0.00014681,2]
[334375989,1723001440317,-500.0,0.00014681,2]
[334375990,1723001440327,-500.0,0.00014681,2]
[334375991,1723001440339,-500.0,0.00014681,2]
[334375992,1723001440350,-500.0,0.00014681,2]
[334375993,1723001440359,-500.0,0.00014681,2]
[334375994,1723001440369,-500.0,0.00014681,2]
[334375995,1723001440380,-500.0,0.00014681,2]
[334375996,1723001440390,-598.35962908,0.00014681,2]
[334375997,1723001440400,-500.0,0.00014681,2]
[334375998,1723001440410,-500.0,0.00014681,2]
[334375999,1723001440420,-500.0,0.00014681,2]
[334376000,1723001440429,-500.0,0.00014681,2]
[334376001,1723001440439,-500.0,0.00014681,2]
[334376002,1723001440451,-500.0,0.00014681,2]
[334376003,1723001440461,-500.0,0.00014681,2]
[334376004,1723001440471,-500.0,0.00014681,2]
[334376005,1723001440480,-500.0,0.00014681,2]
[334376006,1723001440492,-300.0,0.00014681,2]
[334376007,1723001440503,-300.0,0.00014681,2]
[334376008,1723001440513,-194.63550402,0.00014691,2]
[334376009,1723001440524,-1225.08240465,0.00014691,2]
[334376010,1723001440538,-1163.20555821,0.00014691,2]
[334376011,1723001440549,-269.76993169,0.00014691,2]
[334376012,1723001440558,-2141.48569483,0.00014691,2]
[334376013,1723001440567,-1438.72941997,0.00014691,2]
[334376014,1723001440577,-2139.82745581,0.00014691,2]
[334376015,1723001440588,-2163.23532979,0.00014691,2]
[334376016,1723001440599,-9645.52868758,0.00014691,2]
[334376017,1723001440609,-300.46396513,0.000149,2]
[334376018,1723001440619,-419.6007338,0.000149,2]
[334376019,1723001440629,-419.6007338,0.000149,2]
[334376020,1723001440638,-419.6007338,0.000149,2]
[334376021,1723001440648,-297.34089788,0.00014999,2]
[334376022,1723001440657,-5236.61359711,0.00015,2]
[334376023,1723001440668,-1109.20863131,0.00015,2]
[334376024,1723001440677,-951.94046237,0.00015,2]
[334376025,1723001440686,-492.59464676,0.00015,2]
[334376026,1723001440696,-2849.82693867,0.00015,2]
[334376028,1723001440705,-8351.19758754,0.00015,2]
[334376030,1723001440715,-1602.63536312,0.00015607,2]
[334376031,1723001440724,-411.34473064,0.00015696,2]
[334376032,1723001440733,-185.52587366,0.00015696,2]
[334376033,1723001440745,-500.0,0.00015696,2]
[334376034,1723001440755,-500.0,0.00015696,2]
[334376035,1723001440764,-500.0,0.00015696,2]
[334376036,1723001440774,-213.08646866,0.00015696,2]
[334376037,1723001440784,-500.0,0.00015696,2]
[334376038,1723001440795,-500.0,0.00015696,2]
[334376039,1723001440805,-500.0,0.00015696,2]
[334376040,1723001440815,-500.0,0.00015696,2]
[334376041,1723001440824,-500.0,0.00015696,2]
[334376042,1723001440833,-500.0,0.00015696,2]
[334376043,1723001440842,-500.0,0.00015696,2]
[334376044,1723001440852,-56812.3305282,0.00015697,2]
[334376045,1723001440862,-56812.3305282,0.00015698,2]
[334376046,1723001440872,-42354.45522892,0.00015707,2]
[334376047,1723001440882,-20765.79471201,0.00015707,2]
[334376048,1723001440894,-1992.27585132,0.00015708,2]
[334376049,1723001440904,-22140.44415278,0.00015708,2]
[334376050,1723001440916,-174.54270234,0.00015708,2]
[334376051,1723001440925,-420.0,0.00016072,2]
[334376052,1723001440935,-420.0,0.00016149,2]
[334376054,1723001440947,-779.52194802,0.00016309,2]
[334376056,1723001440957,-561.19210757,0.00016438,2]
[334376058,1723001440966,-277.26634811,0.000165,2]
[334376060,1723001440976,-154.66746495,0.00017,2]
[334376061,1723001440987,-587.0,0.00017764,2]
[334376062,1723001440997,-1770.17796357,0.00017847,2]
[334376063,1723001441008,-154.66746495,0.00018,2]
[334376064,1723001441021,-3229.96764663,0.00018447,2]
[334376065,1723001441032,-250.0,0.00019041,2]
[334376066,1723001441048,-823.0,0.0001954,2]
[334376067,1723001441059,-1602.63536309,0.00019899,2]
[334376068,1723001441069,-294.18278188,0.0002,2]
[334376069,1723001441078,-154.80649189,0.0002,2]
[334376070,1723001441087,-154.66746495,0.0002,2]
[334376071,1723001441098,-1444.11606649,0.0002,2]
[334376072,1723001441107,-156.40122441,0.0002,2]
[334376073,1723001441116,-297.92379748,0.00021,2]
[334376074,1723001441126,-1770.17796357,0.00021111,2]
[334376075,1723001441135,-163.48284,0.00021467,2]
[334376076,1723001441145,-161.805747,0.00023688,2]
[334376077,1723001441155,-1602.63536309,0.00024192,2]
[334376078,1723001441164,-1770.17796357,0.00024376,2]
[334376080,1723001441173,-1363.69574407,0.00025,2]
[334376081,1723001441182,-102992.69663383,0.00025,2]
[334376082,1723001441196,-1018.7964517,0.00025,2]
[334376083,1723001441333,-155.13131422,0.00016532,2]
[334376084,1723001441344,-28737.7019834,0.00025,2]
[334376229,1723001445168,273.37336231,9.9e-05,2]
[334376330,1723001453720,273.37336231,9.9e-05,2]
[334376331,1723001454392,189.82369411,0.0001212,2]
[334376332,1723001471254,384.54758407,0.0001212,2]
[334376334,1723001517390,738.58105149,0.0001212,2]
[334376338,1723001562260,398.05702805,9.999e-05,2]
[334376339,1723001573822,412.94081029,0.0001,2]
[334376340,1723001581840,893.72272537,9.999e-05,2]
[334376346,1723001761063,3000.0,0.00013699,2]
[334376355,1723001873094,2751.7020396,0.0001365,2]
[334376357,1723001953720,201.20456961,0.0001365,2]
[334376358,1723001973193,250.0,0.00013665,2]
[334376359,1723001973406,250.0,0.00013702,2]
[334376360,1723001973655,250.0,0.0001374,2]
[334376361,1723001973880,250.0,0.00013777,2]
[334376362,1723001974085,250.0,0.00013815,2]
[334376363,1723001974323,250.0,0.00013852,2]
[334376364,1723001974575,250.0,0.0001389,2]
[334376365,1723001974810,250.0,0.00013927,2]
[334376366,1723001975025,250.0,0.00013965,2]
[334376367,1723001975255,250.0,0.00014002,2]
[334376368,1723002004478,24900.0,0.00013334,2]
[334376369,1723002056273,155.09721813,0.00014002,2]
[334376370,1723002085979,273.37336231,9.9e-05,2]
[334376371,1723002101415,679.092557,0.00013699,2]
[334376372,1723002110485,3720.3483353,0.00013399,2]
[334376373,1723002131028,273.37336231,9.9e-05,2]
[334376374,1723002161352,172.65064241,9.9e-05,2]
[334376376,1723002229353,532.8664081,0.00013312,2]
[334376377,1723002253271,3000.0,0.00013699,2]
[334376379,1723002333786,1198.2062797,0.00013411,2]
[334376380,1723002381400,172.65064241,9.9e-05,2]
[334376381,1723002389414,273.37336231,9.9e-05,2]
[334376382,1723002397512,273.37336231,9.9e-05,2]
[334376384,1723002405415,273.37336231,9.9e-05,2]
[334376385,1723002407222,-195.6718464,0.00014034,2]
[334376386,1723002407247,-35.46555198,0.0001404,2]
[334376387,1723002413562,273.37336231,9.9e-05,2]
[334376388,1723002422149,273.37336231,9.9e-05,2]
[334376389,1723002430612,273.37336231,9.9e-05,2]
[334376390,1723002437989,963.26514221,0.00013411,2]
[334376391,1723002438832,273.37336231,9.9e-05,2]
[334376392,1723002441752,16292.9666897,9.9e-05,2]
[334376393,1723002447762,273.37336231,9.9e-05,2]
[334376394,1723002448903,5726.75238617,9.9e-05,2]
[334376395,1723002449762,2759.290569,9.9e-05,2]
[334376396,1723002453141,4714.09712178,0.00013411,2]
[334376397,1723002453258,568.61673654,0.00012,2]
[334376398,1723002456108,273.37336231,9.9e-05,2]
[334376399,1723002462381,1070.6419705,9.9e-05,2]
[334376400,1723002464019,1416.15916392,9.9e-05,2]
[334376401,1723002464796,649.11248572,9.9e-05,2]
[334376402,1723002467189,24900.0,0.00013343,2]
[334376403,1723002470465,250.0,0.00013482,2]
[334376404,1723002470679,250.0,0.00013519,2]
[334376405,1723002470900,250.0,0.00013556,2]
[334376406,1723002471116,250.0,0.00013593,2]
[334376407,1723002471350,250.0,0.0001363,2]
[334376408,1723002472083,250.0,0.00013667,2]
[334376409,1723002472125,273.37336231,9.9e-05,2]
[334376410,1723002472169,250.0,0.00013704,2]
[334376411,1723002472209,250.0,0.00013741,2]
[334376412,1723002472275,250.0,0.00013778,2]
[334376413,1723002472487,250.0,0.00013815,2]
[334376414,1723002472690,250.0,0.00013852,2]
[334376415,1723002472930,250.0,0.00013889,2]
[334376416,1723002473165,250.0,0.00013926,2]
[334376417,1723002473399,250.0,0.00013963,2]
[334376418,1723002473619,250.0,0.00014,2]
[334376419,1723002479504,273.37336231,9.9e-05,2]
[334376420,1723002487982,273.37336231,9.9e-05,2]
[334376422,1723002491256,16292.9666897,0.00012,2]
[334376423,1723002496364,273.37336231,9.9e-05,2]
[334376424,1723002497862,568.61673654,0.00012,2]
[334376425,1723002504890,273.37336231,9.9e-05,2]
[334376427,1723002509667,3004.01681494,0.00012,2]
[334376428,1723002511275,534.08924875,0.00012,2]
[334376429,1723002514103,273.37336231,9.9e-05,2]
[334376430,1723002522551,664.2961566,0.00012,2]
[334376431,1723002526253,16292.9666897,0.00012,2]
[334376432,1723002534328,183.12142007,0.00012,2]
[334376433,1723002551282,533.84474029,0.00012,2]
[334376477,1723002633259,-250.0,0.00014037,2]
[334376478,1723002633271,-250.0,0.00014074,2]
[334376479,1723002633283,-250.0,0.00014111,2]
[334376480,1723002633292,-250.0,0.00014148,2]
[334376481,1723002633301,-250.0,0.00014185,2]
[334376482,1723002633310,-164.164871,0.00014247,2]
[334376483,1723002633320,-180.429889,0.00014247,2]
[334376484,1723002633330,-568.61673654,0.00014545,2]
[334376485,1723002633340,-7571.62816548,0.00014545,2]
[334376486,1723002633351,-1924.4888624,0.00014582,2]
[334376487,1723002633361,-443.24922851,0.00014681,2]
[334376488,1723002633371,-500.0,0.00014681,2]
[334376489,1723002633383,-500.0,0.00014681,2]
[334376490,1723002633392,-183.84638807,0.00014681,2]
[334376491,1723002633402,-500.0,0.00014681,2]
[334376492,1723002633417,-500.0,0.00014681,2]
[334376493,1723002633427,-300.0,0.00014681,2]
[334376494,1723002633436,-300.0,0.00014681,2]
[334376495,1723002633448,-500.0,0.00014682,2]
[334376496,1723002633458,-500.0,0.00014682,2]
[334376497,1723002633468,-500.0,0.00014682,2]
[334376498,1723002633478,-673.64020805,0.00014682,2]
[334376499,1723002633490,-673.64020805,0.00014682,2]
[334376500,1723002633501,-673.64020805,0.00014682,2]
[334376501,1723002633510,-673.64020805,0.00014682,2]
[334376502,1723002633520,-673.64020805,0.00014682,2]
[334376503,1723002633532,-673.64020805,0.00014682,2]
[334376504,1723002633541,-673.64020805,0.00014682,2]
[334376505,1723002633551,-673.64020805,0.00014682,2]
[334376506,1723002633560,-673.64020805,0.00014682,2]
[334376507,1723002633569,-673.64020805,0.00014682,2]
[334376508,1723002633580,-673.64020805,0.00014682,2]
[334376509,1723002633590,-673.64020805,0.00014682,2]
[334376510,1723002633599,-673.64020805,0.00014682,2]
[334376511,1723002633609,-673.64020805,0.00014682,2]
[334376512,1723002633619,-673.64020805,0.00014682,2]
[334376513,1723002633629,-673.64020805,0.00014682,2]
[334376514,1723002633638,-673.64020805,0.00014682,2]
[334376515,1723002633648,-673.64020805,0.00014682,2]
[334376516,1723002633659,-673.64020805,0.00014682,2]
[334376517,1723002633668,-673.64020805,0.00014682,2]
[334376518,1723002633678,-673.64020805,0.00014682,2]
[334376519,1723002633688,-673.64020805,0.00014682,2]
[334376520,1723002633697,-673.64020805,0.00014682,2]
[334376521,1723002633707,-673.64020805,0.00014682,2]
[334376522,1723002633717,-673.64020805,0.00014682,2]
[334376523,1723002633727,-673.64020805,0.00014682,2]
[334376524,1723002633736,-673.64020805,0.00014682,2]
[334376525,1723002633745,-673.64020805,0.00014682,2]
[334376526,1723002633755,-673.64020805,0.00014682,2]
[334376527,1723002633764,-673.64020805,0.00014682,2]
[334376528,1723002633774,-673.64020805,0.00014682,2]
[334376529,1723002633784,-673.64020805,0.00014682,2]
[334376530,1723002633793,-673.64020805,0.00014682,2]
[334376531,1723002633803,-673.64020805,0.00014682,2]
[334376532,1723002633812,-673.64020805,0.00014682,2]
[334376533,1723002633822,-673.64020805,0.00014682,2]
[334376534,1723002633831,-665.47487219,0.00014682,2]
[334376535,1723002633840,-665.47487219,0.00014682,2]
[334376536,1723002633851,-665.47487219,0.00014682,2]
[334376537,1723002633861,-665.47487219,0.00014682,2]
[334376538,1723002633870,-665.47487219,0.00014682,2]
[334376539,1723002633880,-665.47487219,0.00014682,2]
[334376540,1723002633890,-665.47487219,0.00014682,2]
[334376541,1723002633900,-665.47487219,0.00014682,2]
[334376542,1723002633910,-665.47487219,0.00014682,2]
[334376543,1723002633920,-665.47487219,0.00014682,2]
[334376544,1723002633931,-665.47487219,0.00014682,2]
[334376545,1723002633941,-665.47487219,0.00014682,2]
[334376546,1723002633950,-665.47487219,0.00014682,2]
[334376547,1723002633960,-665.47487219,0.00014682,2]
[334376548,1723002633970,-665.47487219,0.00014682,2]
[334376549,1723002633980,-665.47487219,0.00014682,2]
[334376550,1723002633989,-665.47487219,0.00014682,2]
[334376551,1723002633999,-665.47487219,0.00014682,2]
[334376552,1723002634009,-665.47487219,0.00014682,2]
[334376553,1723002634019,-665.47487219,0.00014682,2]
[334376554,1723002634030,-665.47487219,0.00014682,2]
[334376555,1723002634040,-665.47487213,0.00014682,2]
[334376556,1723002634050,-309.99916935,0.00014683,2]
[334376557,1723002634061,-194.63550402,0.00014691,2]
[334376558,1723002634072,-1163.20555821,0.00014691,2]
[334376559,1723002634084,-1438.72941997,0.00014691,2]
[334376560,1723002634096,-2139.82745581,0.00014691,2]
[334376561,1723002634107,-1591.02428063,0.00014691,2]
[334376562,1723002634214,-1025.51130115,0.00014691,2]
[334376563,1723002637313,404.87698079,0.00012,2]
[334376569,1723002638174,-500.0,0.00014681,2]
[334376571,1723002638184,-474.79099725,0.00014681,2]
[334376572,1723002638195,-25.20900275,0.00014681,2]
[334376573,1723002638205,-332.21742821,0.00014681,2]
[334376574,1723002638217,-167.78257179,0.00014681,2]
[334376575,1723002638227,-404.12504997,0.00014681,2]
[334376576,1723002638236,-500.0,0.00014681,2]
[334376577,1723002638247,-500.0,0.00014681,2]
[334376578,1723002638257,-500.0,0.00014681,2]
[334376579,1723002638266,-500.0,0.00014681,2]
[334376580,1723002638276,-500.0,0.00014681,2]
[334376581,1723002638288,-500.0,0.00014681,2]
[334376582,1723002638299,-500.0,0.00014681,2]
[334376583,1723002638309,-500.0,0.00014681,2]
[334376584,1723002638320,-500.0,0.00014681,2]
[334376585,1723002638329,-500.0,0.00014681,2]
[334376586,1723002638339,-500.0,0.00014681,2]
[334376587,1723002638349,-500.0,0.00014681,2]
[334376588,1723002638358,-500.0,0.00014681,2]
[334376589,1723002638368,-500.0,0.00014681,2]
[334376590,1723002638377,-500.0,0.00014681,2]
[334376591,1723002638387,-500.0,0.00014681,2]
[334376592,1723002638398,-500.0,0.00014681,2]
[334376593,1723002638410,-278.36461612,0.00014681,2]
[334376594,1723002638424,-500.0,0.00014681,2]
[334376595,1723002638435,-500.0,0.00014681,2]
[334376596,1723002638446,-500.0,0.00014681,2]
[334376597,1723002638456,-500.0,0.00014681,2]
[334376598,1723002638466,-500.0,0.00014681,2]
[334376599,1723002638476,-500.0,0.00014681,2]
[334376600,1723002638488,-500.0,0.00014681,2]
[334376601,1723002638498,-500.0,0.00014681,2]
[334376602,1723002638510,-500.0,0.00014681,2]
[334376603,1723002638520,-500.0,0.00014681,2]
[334376604,1723002638532,-500.0,0.00014681,2]
[334376605,1723002638541,-296.07304159,0.00014681,2]
[334376606,1723002638551,-500.0,0.00014681,2]
[334376607,1723002638561,-500.0,0.00014681,2]
[334376608,1723002638571,-500.0,0.00014681,2]
[334376609,1723002638583,-500.0,0.00014681,2]
[334376610,1723002638595,-134.74614812,0.00014681,2]
[334376622,1723002640380,-365.25385188,0.00014681,2]
[334376625,1723002640392,-500.0,0.00014681,2]
[334376627,1723002640402,-500.0,0.00014681,2]
[334376629,1723002640414,-500.0,0.00014681,2]
[334376631,1723002640425,-500.0,0.00014681,2]
[334376632,1723002640435,-368.19626045,0.00014681,2]
[334376634,1723002640444,-500.0,0.00014681,2]
[334376636,1723002640455,-500.0,0.00014681,2]
[334376637,1723002640465,-500.0,0.00014681,2]
[334376639,1723002640476,-500.0,0.00014681,2]
[334376641,1723002640487,-500.0,0.00014681,2]